fUSD/lending_fUSD_20250219
["ID","MTS","AMOUNT","RATE_DAILY","PERIOD"]
[353599177,1739956260512,-500.0,0.00013863,2]
[353599178,1739956260521,-500.0,0.00013863,2]
[353599179,1739956260531,-500.0,0.00013863,2]
[353599180,1739956260540,-1320.52,0.00013863,2]
[353599181,1739956260550,-500.0,0.00013863,2]
[353599182,1739956260559,-500.0,0.00013863,2]
[353599183,1739956260569,-500.0,0.00013863,2]
[353599184,1739956260579,-500.0,0.00013863,2]
[353599185,1739956260591,-500.0,0.00013863,2]
[353599186,1739956260604,-500.0,0.00013863,2]
[353599187,1739956260613,-500.0,0.00013863,2]
[353599188,1739956260623,-500.0,0.00013863,2]
[353599189,1739956260634,-500.0,0.00013863,2]
[353599190,1739956260644,-500.0,0.00013863,2]
[353599191,1739956260654,-1066.97,0.00013863,2]
[353599192,1739956260664,-616.19254556,0.00013863,2]
[353599193,1739956260675,-614.46,0.00013863,2]
[353599194,1739956260685,-500.0,0.00013863,2]
[353599195,1739956260695,-500.0,0.00013863,2]
[353599196,1739956260704,-500.0,0.00013863,2]
[353599197,1739956260714,-500.0,0.00013863,2]
[353599198,1739956260724,-661.79,0.00013863,2]
[353599199,1739956260735,-500.0,0.00013863,2]
[353599200,1739956260745,-500.0,0.00013863,2]
[353599201,1739956260755,-500.0,0.00013863,2]
[353599202,1739956260765,-500.0,0.00013863,2]
[353599203,1739956260776,-500.0,0.00013863,2]
[353599204,1739956260785,-768.24,0.00013863,2]
[353599205,1739956260795,-883.53,0.00013863,2]
[353599206,1739956260805,-500.0,0.00013863,2]
[353599207,1739956260814,-500.0,0.00013863,2]
[353599208,1739956260824,-757.47,0.00013863,2]
[353599209,1739956260834,-500.0,0.00013863,2]
[353599210,1739956260844,-500.0,0.00013863,2]
[353599211,1739956260854,-500.0,0.00013863,2]
[353599212,1739956260864,-500.0,0.00013863,2]
[353599213,1739956260874,-500.0,0.00013863,2]
[353599214,1739956260883,-500.0,0.00013863,2]
[353599215,1739956260893,-704.06,0.00013863,2]
[353599216,1739956260903,-684.88,0.00013863,2]
[353599217,1739956260913,-807.63,0.00013863,2]
[353599218,1739956260923,-500.0,0.00013863,2]
[353599219,1739956260932,-1106.19,0.00013863,2]
[353599220,1739956260942,-500.0,0.00013863,2]
[353599221,1739956260952,-500.0,0.00013863,2]
[353599222,1739956260963,-500.0,0.00013863,2]
[353599223,1739956260973,-754.27,0.00013863,2]
[353599224,1739956260984,-500.0,0.00013863,2]
[353599225,1739956260994,-424.82249176,0.00013863,2]
[353599226,1739956261004,-508.85,0.00013863,2]
[353599227,1739956261014,-500.0,0.00013863,2]
[353599228,1739956261024,-500.0,0.00013863,2]
[353599229,1739956261033,-599.3,0.00013863,2]
[353599230,1739956261042,-500.0,0.00013863,2]
[353599231,1739956261051,-500.0,0.00013863,2]
[353599232,1739956261061,-634.4,0.00013863,2]
[353599233,1739956261070,-613.55,0.00013863,2]
[353599234,1739956261080,-500.0,0.00013863,2]
[353599235,1739956261089,-671.28,0.00013863,2]
[353599236,1739956261099,-500.0,0.00013863,2]
[353599237,1739956261108,-549.02,0.00013863,2]
[353599238,1739956261117,-940.4,0.00013863,2]
[353599239,1739956261127,-500.0,0.00013863,2]
[353599240,1739956261136,-390.75946578,0.00013863,2]
[353599241,1739956261146,-500.0,0.00013863,2]
[353599242,1739956261155,-500.0,0.00013863,2]
[353599243,1739956261165,-500.0,0.00013863,2]
[353599244,1739956261175,-500.0,0.00013863,2]
[353599245,1739956261185,-500.0,0.00013863,2]
[353599246,1739956261195,-500.0,0.00013863,2]
[353599247,1739956261205,-701.88,0.00013863,2]
[353599248,1739956261214,-1201.79,0.00013863,2]
[353599249,1739956261226,-500.0,0.00013863,2]
[353599250,1739956261237,-500.0,0.00013863,2]
[353599251,1739956261247,-500.0,0.00013863,2]
[353599252,1739956261256,-500.0,0.00013863,2]
[353599253,1739956261266,-500.0,0.00013863,2]
[353599254,1739956261276,-500.0,0.00013863,2]
[353599255,1739956261285,-516.69865769,0.00013863,2]
[353599256,1739956261295,-1066.42,0.00013863,2]
[353599257,1739956261304,-500.0,0.00013863,2]
[353599258,1739956261314,-500.0,0.00013863,2]
[353599259,1739956261323,-500.0,0.00013863,2]
[353599260,1739956261332,-702.43,0.00013863,2]
[353599261,1739956261342,-500.0,0.00013863,2]
[353599262,1739956261351,-606.28,0.00013863,2]
[353599263,1739956261361,-572.02,0.00013863,2]
[353599264,1739956261370,-526.58599155,0.00013863,2]
[353599265,1739956261379,-500.0,0.00013863,2]
[353599266,1739956261389,-500.0,0.00013863,2]
[353599267,1739956261398,-500.0,0.00013863,2]
[353599268,1739956261407,-500.0,0.00013863,2]
[353599269,1739956261416,-500.0,0.00013863,2]
[353599270,1739956261426,-804.81,0.00013863,2]
[353599271,1739956261435,-500.0,0.00013863,2]
[353599272,1739956261444,-519.55,0.00013863,2]
[353599273,1739956261453,-1076.87,0.00013863,2]
[353599274,1739956261463,-500.0,0.00013863,2]
[353599275,1739956261472,-500.0,0.00013863,2]
[353599276,1739956261482,-500.0,0.00013863,2]
[353599277,1739956261491,-500.0,0.00013863,2]
[353599278,1739956261500,-347.88153454,0.00013863,2]
[353599279,1739956261510,-500.0,0.00013863,2]
[353599280,1739956261519,-500.0,0.00013863,2]
[353599281,1739956261529,-663.22,0.00013863,2]
[353599282,1739956261538,-183.08669605,0.00013863,2]
[353599283,1739956261547,-776.4,0.00013863,2]
[353599284,1739956261557,-500.0,0.00013863,2]
[353599285,1739956261566,-683.82,0.00013863,2]
[353599286,1739956261575,-463.29921823,0.00013863,2]
[353599287,1739956261584,-500.0,0.00013863,2]
[353599288,1739956261595,-500.0,0.00013863,2]
[353599289,1739956261604,-500.0,0.00013863,2]
[353599290,1739956261614,-500.0,0.00013863,2]
[353599291,1739956261623,-500.0,0.00013863,2]
[353599292,1739956261633,-751.62,0.00013863,2]
[353599293,1739956261643,-500.0,0.00013863,2]
[353599294,1739956261652,-500.0,0.00013863,2]
[353599295,1739956261662,-500.0,0.00013863,2]
[353599296,1739956261672,-670.91,0.00013863,2]
[353599297,1739956261682,-500.0,0.00013863,2]
[353599298,1739956261691,-500.0,0.00013863,2]
[353599299,1739956261702,-500.0,0.00013863,2]
[353599300,1739956261711,-500.0,0.00013863,2]
[353599301,1739956261720,-955.91,0.00013863,2]
[353599302,1739956261730,-500.0,0.00013863,2]
[353599303,1739956261740,-1091.48,0.00013863,2]
[353599304,1739956261750,-500.0,0.00013863,2]
[353599305,1739956261760,-500.0,0.00013863,2]
[353599306,1739956261770,-500.0,0.00013863,2]
[353599307,1739956261780,-500.0,0.00013863,2]
[353599308,1739956261789,-500.0,0.00013863,2]
[353599309,1739956261799,-1394.43,0.00013863,2]
[353599310,1739956261809,-500.0,0.00013863,2]
[353599311,1739956261819,-672.58,0.00013863,2]
[353599312,1739956261830,-514.65,0.00013863,2]
[353599313,1739956261839,-500.0,0.00013863,2]
[353599314,1739956261849,-500.0,0.00013863,2]
[353599315,1739956261859,-500.0,0.00013863,2]
[353599316,1739956261868,-500.0,0.00013863,2]
[353599317,1739956261878,-500.0,0.00013863,2]
[353599318,1739956261887,-500.0,0.00013863,2]
[353599319,1739956261897,-500.0,0.00013863,2]
[353599320,1739956261906,-691.45,0.00013863,2]
[353599321,1739956261917,-500.0,0.00013863,2]
[353599322,1739956261927,-629.64,0.00013863,2]
[353599323,1739956261937,-500.0,0.00013863,2]
[353599324,1739956261946,-878.76,0.00013863,2]
[353599325,1739956261956,-500.0,0.00013863,2]
[353599326,1739956261966,-500.0,0.00013863,2]
[353599327,1739956261975,-500.0,0.00013863,2]
[353599328,1739956261986,-526.91590826,0.00013863,2]
[353599329,1739956261996,-648.01,0.00013863,2]
[353599330,1739956262005,-500.0,0.00013863,2]
[353599331,1739956262015,-895.83,0.00013863,2]
[353599332,1739956262024,-500.0,0.00013863,2]
[353599333,1739956262034,-553.99,0.00013863,2]
[353599334,1739956262043,-682.24,0.00013863,2]
[353599335,1739956262053,-500.0,0.00013863,2]
[353599336,1739956262062,-694.25,0.00013863,2]
[353599337,1739956262071,-500.0,0.00013863,2]
[353599338,1739956262081,-635.95,0.00013863,2]
[353599339,1739956262091,-742.73,0.00013863,2]
[353599340,1739956262100,-966.29,0.00013863,2]
[353599341,1739956262110,-500.0,0.00013863,2]
[353599342,1739956262121,-629.96435085,0.00013863,2]
[353599343,1739956262131,-500.0,0.00013863,2]
[353599344,1739956262140,-500.0,0.00013863,2]
[353599345,1739956262150,-500.0,0.00013863,2]
[353599346,1739956262159,-500.0,0.00013863,2]
[353599347,1739956262168,-500.0,0.00013863,2]
[353599348,1739956262177,-500.0,0.00013863,2]
[353599349,1739956262187,-518.6,0.00013863,2]
[353599350,1739956262196,-516.62,0.00013863,2]
[353599351,1739956262206,-614.7,0.00013863,2]
[353599352,1739956262215,-500.0,0.00013863,2]
[353599353,1739956262225,-500.0,0.00013863,2]
[353599354,1739956262235,-512.96147095,0.00013863,2]
[353599355,1739956262244,-500.0,0.00013863,2]
[353599356,1739956262254,-500.0,0.00013863,2]
[353599357,1739956262263,-500.0,0.00013863,2]
[353599358,1739956262271,-1007.52,0.00013863,2]
[353599359,1739956262280,-500.0,0.00013863,2]
[353599360,1739956262290,-735.34,0.00013863,2]
[353599361,1739956262299,-508.9275364,0.00013863,2]
[353599362,1739956262308,-500.0,0.00013863,2]
[353599363,1739956262317,-1732.84,0.00013863,2]
[353599364,1739956262327,-500.0,0.00013863,2]
[353599365,1739956262337,-500.0,0.00013863,2]
[353599366,1739956262347,-500.0,0.00013863,2]
[353599367,1739956262357,-500.0,0.00013863,2]
[353599368,1739956262367,-500.0,0.00013863,2]
[353599369,1739956262377,-500.0,0.00013863,2]
[353599370,1739956262386,-700.89,0.00013863,2]
[353599371,1739956262396,-500.0,0.00013863,2]
[353599372,1739956262405,-500.0,0.00013863,2]
[353599373,1739956262415,-500.0,0.00013863,2]
[353599374,1739956262424,-500.0,0.00013863,2]
[353599375,1739956262433,-500.0,0.00013863,2]
[353599376,1739956262443,-543.03688606,0.00013863,2]
[353599377,1739956262452,-500.0,0.00013863,2]
[353599378,1739956262461,-563.75,0.00013863,2]
[353599379,1739956262471,-487.77428461,0.00013863,2]
[353599380,1739956262479,-500.0,0.00013863,2]
[353599381,1739956262488,-500.0,0.00013863,2]
[353599382,1739956262499,-572.44,0.00013863,2]
[353599383,1739956262508,-675.61,0.00013863,2]
[353599384,1739956262517,-500.0,0.00013863,2]
[353599385,1739956262526,-692.71,0.00013863,2]
[353599386,1739956262536,-921.81,0.00013863,2]
[353599387,1739956262545,-500.0,0.00013863,2]
[353599388,1739956262554,-534.22922163,0.00013863,2]
[353599389,1739956262563,-630.15,0.00013863,2]
[353599390,1739956262572,-500.0,0.00013863,2]
[353599391,1739956262583,-840.73,0.00013863,2]
[353599392,1739956262594,-500.0,0.00013863,2]
[353599393,1739956262604,-500.0,0.00013863,2]
[353599394,1739956262613,-500.0,0.00013863,2]
[353599395,1739956262623,-500.0,0.00013863,2]
[353599396,1739956262632,-754.93,0.00013863,2]
[353599397,1739956262641,-792.57,0.00013863,2]
[353599398,1739956262651,-500.0,0.00013863,2]
[353599399,1739956262660,-637.85,0.00013863,2]
[353599400,1739956262669,-500.0,0.00013863,2]
[353599401,1739956262679,-500.0,0.00013863,2]
[353599402,1739956262688,-500.0,0.00013863,2]
[353599403,1739956262698,-500.0,0.00013863,2]
[353599404,1739956262708,-1420.07,0.00013863,2]
[353599405,1739956262717,-500.0,0.00013863,2]
[353599406,1739956262726,-500.0,0.00013863,2]
[353599407,1739956262904,-500.0,0.00013863,2]
[353599408,1739956262933,-500.0,0.00013863,2]
[353599409,1739956262942,-597.8,0.00013863,2]
[353599410,1739956262951,-1337.04,0.00013863,2]
[353599411,1739956262961,-828.61,0.00013863,2]
[353599412,1739956262971,-500.0,0.00013863,2]
[353599413,1739956262982,-500.0,0.00013863,2]
[353599414,1739956262992,-500.0,0.00013863,2]
[353599415,1739956263001,-1655.83,0.00013863,2]
[353599416,1739956263010,-537.86,0.00013863,2]
[353599417,1739956263019,-212.84757607,0.00013863,2]
[353599418,1739956263028,-500.0,0.00013863,2]
[353599419,1739956263038,-1249.94,0.00013863,2]
[353599420,1739956263048,-500.0,0.00013863,2]
[353599421,1739956263059,-500.0,0.00013863,2]
[353599422,1739956263069,-500.0,0.00013863,2]
[353599423,1739956263079,-500.0,0.00013863,2]
[353599424,1739956263089,-500.0,0.00013863,2]
[353599425,1739956263099,-766.75,0.00013863,2]
[353599426,1739956263109,-500.0,0.00013863,2]
[353599427,1739956263119,-1406.25,0.00013863,2]
[353599428,1739956263129,-566.34,0.00013863,2]
[353599429,1739956263139,-781.14,0.00013863,2]
[353599430,1739956263149,-500.0,0.00013863,2]
[353599431,1739956263158,-500.0,0.00013863,2]
[353599432,1739956263168,-552.58,0.00013863,2]
[353599433,1739956263179,-500.0,0.00013863,2]
[353599434,1739956263189,-500.0,0.00013863,2]
[353599435,1739956263199,-500.0,0.00013863,2]
[353599436,1739956263211,-500.0,0.00013863,2]
[353599437,1739956263222,-500.0,0.00013863,2]
[353599438,1739956263235,-500.0,0.00013863,2]
[353599439,1739956263244,-767.12,0.00013863,2]
[353599440,1739956263254,-864.57,0.00013863,2]
[353599441,1739956263265,-502.16,0.00013863,2]
[353599442,1739956263275,-514.21229284,0.00013863,2]
[353599443,1739956263285,-500.0,0.00013863,2]
[353599444,1739956263295,-500.0,0.00013863,2]
[353599445,1739956263304,-1343.23,0.00013863,2]
[353599446,1739956263314,-500.0,0.00013863,2]
[353599447,1739956263324,-661.82,0.00013863,2]
[353599448,1739956263334,-500.0,0.00013863,2]
[353599449,1739956263344,-500.0,0.00013863,2]
[353599450,1739956263354,-500.0,0.00013863,2]
[353599451,1739956263364,-841.68,0.00013863,2]
[353599452,1739956263374,-852.01,0.00013863,2]
[353599453,1739956263383,-500.0,0.00013863,2]
[353599454,1739956263393,-897.14,0.00013863,2]
[353599455,1739956263402,-1231.49,0.00013863,2]
[353599456,1739956263412,-500.0,0.00013863,2]
[353599457,1739956263421,-500.0,0.00013863,2]
[353599458,1739956263430,-500.0,0.00013863,2]
[353599459,1739956263440,-500.0,0.00013863,2]
[353599460,1739956263449,-500.0,0.00013863,2]
[353599461,1739956263459,-500.0,0.00013863,2]
[353599462,1739956263470,-838.02,0.00013863,2]
[353599463,1739956263480,-500.0,0.00013863,2]
[353599464,1739956263490,-500.0,0.00013863,2]
[353599465,1739956263500,-500.0,0.00013863,2]
[353599466,1739956263510,-494.02730408,0.00013863,2]
[353599467,1739956263520,-786.35,0.00013863,2]
[353599468,1739956263531,-500.0,0.00013863,2]
[353599469,1739956263541,-639.43,0.00013863,2]
[353599470,1739956263551,-500.0,0.00013863,2]
[353599471,1739956263561,-500.0,0.00013863,7]
[353599472,1739956263572,-500.0,0.00013863,2]
[353599473,1739956263582,-521.38,0.00013863,2]
[353599474,1739956263593,-500.0,0.00013863,2]
[353599475,1739956263605,-500.0,0.00013863,2]
[353599476,1739956263614,-801.45,0.00013863,2]
[353599477,1739956263624,-689.46,0.00013863,2]
[353599478,1739956263634,-500.0,0.00013863,2]
[353599479,1739956263644,-600.94,0.00013863,2]
[353599480,1739956263654,-1532.24,0.00013863,2]
[353599481,1739956263664,-500.0,0.00013863,2]
[353599482,1739956263674,-500.0,0.00013863,2]
[353599483,1739956263684,-500.0,0.00013863,2]
[353599484,1739956263694,-1165.95,0.00013863,2]
[353599485,1739956263704,-500.0,0.00013863,2]
[353599486,1739956263714,-1343.75,0.00013863,2]
[353599487,1739956263724,-500.0,0.00013863,2]
[353599488,1739956263736,-500.0,0.00013863,2]
[353599489,1739956263746,-2541.44,0.00013863,2]
[353599490,1739956263756,-500.0,0.00013863,2]
[353599491,1739956263766,-500.0,0.00013863,2]
[353599492,1739956263775,-500.0,0.00013863,2]
[353599493,1739956263785,-500.0,0.00013863,2]
[353599494,1739956263795,-500.0,0.00013863,2]
[353599495,1739956263805,-682.01,0.00013863,2]
[353599496,1739956263816,-1000.35,0.00013863,2]
[353599497,1739956263826,-500.0,0.00013863,2]
[353599498,1739956263836,-912.63,0.00013863,2]
[353599499,1739956263846,-1444.62,0.00013863,2]
[353599500,1739956263857,-905.46,0.00013863,2]
[353599501,1739956263867,-500.0,0.00013863,2]
[353599502,1739956263878,-500.0,0.00013863,2]
[353599503,1739956263888,-514.3,0.00013863,2]
[353599504,1739956263899,-1045.26,0.00013863,2]
[353599505,1739956263909,-500.0,0.00013863,2]
[353599506,1739956263919,-500.0,0.00013863,2]
[353599507,1739956263928,-573.69,0.00013863,2]
[353599508,1739956263938,-500.0,0.00013863,2]
[353599509,1739956263948,-1227.93,0.00013863,2]
[353599510,1739956263958,-500.0,0.00013863,2]
[353599511,1739956263968,-500.0,0.00013863,2]
[353599512,1739956263978,-500.0,0.00013863,2]
[353599513,1739956263991,-500.0,0.00013863,2]
[353599514,1739956264001,-1476.92,0.00013863,2]
[353599515,1739956264011,-1232.38,0.00013863,2]
[353599516,1739956264022,-710.37,0.00013863,2]
[353599517,1739956264032,-500.0,0.00013863,2]
[353599518,1739956264042,-812.83,0.00013863,2]
[353599519,1739956264052,-519.67,0.00013863,2]
[353599520,1739956264063,-500.0,0.00013863,2]
[353599521,1739956264074,-553.7,0.00013863,2]
[353599522,1739956264084,-1409.08,0.00013863,2]
[353599523,1739956264094,-629.34,0.00013863,2]
[353599524,1739956264105,-609.28,0.00013863,2]
[353599525,1739956264115,-500.0,0.00013863,2]
[353599526,1739956264126,-500.0,0.00013863,2]
[353599527,1739956264136,-1704.97,0.00013863,2]
[353599528,1739956264148,-1698.56,0.00013863,2]
[353599529,1739956264159,-500.0,0.00013863,2]
[353599530,1739956264170,-500.0,0.00013863,2]
[353599531,1739956264181,-500.0,0.00013863,2]
[353599532,1739956264192,-500.0,0.00013863,2]
[353599533,1739956264202,-567.91,0.00013863,2]
[353599534,1739956264212,-598.55,0.00013863,2]
[353599535,1739956264221,-977.71,0.00013863,2]
[353599536,1739956264233,-687.18,0.00013863,2]
[353599537,1739956264243,-500.0,0.00013863,2]
[353599538,1739956264252,-896.35,0.00013863,2]
[353599539,1739956264261,-985.96,0.00013863,2]
[353599540,1739956264271,-1293.22,0.00013863,2]
[353599541,1739956264281,-589.01,0.00013863,2]
[353599542,1739956264291,-859.57,0.00013863,2]
[353599543,1739956264301,-3283.42,0.00013863,2]
[353599544,1739956264312,-563.44,0.00013863,2]
[353599545,1739956264321,-500.0,0.00013863,2]
[353599546,1739956264331,-500.0,0.00013863,2]
[353599547,1739956264341,-4171.55,0.00013863,2]
[353599548,1739956264351,-500.0,0.00013863,2]
[353599549,1739956264361,-500.0,0.00013863,2]
[353599550,1739956264371,-1629.5,0.00013863,2]
[353599551,1739956264381,-500.0,0.00013863,2]
[353599552,1739956264391,-1409.56,0.00013863,2]
[353599553,1739956264402,-516.57,0.00013863,2]
[353599554,1739956264412,-500.0,0.00013863,2]
[353599555,1739956264422,-2547.83,0.00013863,2]
[353599556,1739956264432,-687.63,0.00013863,2]
[353599557,1739956264443,-500.0,0.00013863,2]
[353599558,1739956264453,-500.0,0.00013863,2]
[353599559,1739956264463,-500.0,0.00013863,2]
[353599560,1739956264474,-2003.37,0.00013863,2]
[353599561,1739956264487,-2418.45,0.00013863,2]
[353599562,1739956264496,-1218.3,0.00013863,2]
[353599563,1739956264506,-500.0,0.00013863,2]
[353599564,1739956264515,-807.83,0.00013863,2]
[353599565,1739956264525,-807.85,0.00013863,2]
[353599566,1739956264534,-500.0,0.00013863,2]
[353599567,1739956264544,-988.01,0.00013863,2]
[353599568,1739956264553,-955.82,0.00013863,2]
[353599569,1739956264562,-500.0,0.00013863,2]
[353599570,1739956264572,-1742.55,0.00013863,2]
[353599571,1739956264582,-513.77792391,0.00013863,2]
[353599572,1739956264593,-503.34841367,0.00013863,2]
[353599573,1739956264605,-500.0,0.00013863,2]
[353599574,1739956264615,-500.0,0.00013863,2]
[353599575,1739956264624,-2045.62,0.00013863,2]
[353599576,1739956264634,-1883.77,0.00013863,2]
[353599577,1739956264652,-571.51,0.00013863,2]
[353599578,1739956264669,-500.0,0.00013863,2]
[353599579,1739956264683,-500.0,0.00013863,2]
[353599580,1739956264699,-500.0,0.00013863,2]
[353599581,1739956264714,-884.45,0.00013863,2]
[353599582,1739956264729,-796.14,0.00013863,2]
[353599583,1739956264745,-654.45,0.00013863,2]
[353599584,1739956264758,-500.0,0.00013863,2]
[353599585,1739956264772,-500.0,0.00013863,2]
[353599586,1739956264788,-835.39,0.00013863,2]
[353599587,1739956264803,-2139.46,0.00013863,2]
[353599588,1739956264819,-1249.77,0.00013863,2]
[353599589,1739956264834,-2172.72,0.00013863,2]
[353599590,1739956264850,-580.58,0.00013863,2]
[353599591,1739956264864,-500.0,0.00013863,2]
[353599592,1739956264879,-3291.96,0.00013863,2]
[353599593,1739956264893,-1238.85,0.00013863,2]
[353599594,1739956264910,-516.16,0.00013863,2]
[353599595,1739956264924,-729.72,0.00013863,2]
[353599596,1739956264935,-7200.05,0.00013863,2]
[353599597,1739956264948,-500.0,0.00013863,2]
[353599598,1739956264966,-1375.31,0.00013863,2]
[353599599,1739956264977,-2106.07,0.00013863,2]
[353599600,1739956264991,-500.0,0.00013863,2]
[353599601,1739956265006,-523.01,0.00013863,2]
[353599602,1739956265019,-500.0,0.00013863,2]
[353599603,1739956265030,-1089.87,0.00013863,2]
[353599604,1739956265043,-500.0,0.00013863,2]
[353599605,1739956265055,-955.81,0.00013863,2]
[353599606,1739956265068,-500.0,0.00013863,2]
[353599607,1739956265081,-614.36205503,0.00013863,2]
[353599608,1739956265093,-1081.77,0.00013863,2]
[353599609,1739956265106,-1314.5,0.00013863,2]
[353599610,1739956265119,-780.11,0.00013863,2]
[353599611,1739956265132,-2019.56,0.00013863,2]
[353599612,1739956265145,-1667.79,0.00013863,2]
[353599613,1739956265158,-828.1,0.00013863,2]
[353599614,1739956265171,-833.52,0.00013863,2]
[353599615,1739956265185,-500.0,0.00013863,2]
[353599616,1739956265199,-775.61,0.00013863,2]
[353599617,1739956265211,-622.67,0.00013863,2]
[353599618,1739956265224,-505.86,0.00013863,2]
[353599619,1739956265237,-500.0,0.00013863,2]
[353599620,1739956265251,-519.75805554,0.00013863,2]
[353599621,1739956265263,-500.0,0.00013863,2]
[353599622,1739956265276,-1495.56,0.00013863,2]
[353599623,1739956265289,-500.0,0.00013863,2]
[353599624,1739956265302,-773.49,0.00013863,2]
[353599625,1739956265315,-1346.01,0.00013863,2]
[353599626,1739956265327,-500.0,0.00013863,2]
[353599627,1739956265340,-500.0,0.00013863,2]
[353599628,1739956265353,-965.02,0.00013863,2]
[353599629,1739956265366,-500.0,0.00013863,2]
[353599630,1739956265379,-500.0,0.00013863,2]
[353599631,1739956265392,-3128.52,0.00013863,2]
[353599632,1739956265404,-500.0,0.00013863,2]
[353599633,1739956265416,-2657.84,0.00013863,2]
[353599634,1739956265428,-695.68,0.00013863,2]
[353599635,1739956265441,-2583.09,0.00013863,2]
[353599636,1739956265454,-535.74833745,0.00013863,2]
[353599637,1739956265467,-519.53951607,0.00013863,2]
[353599638,1739956265480,-1109.09,0.00013863,2]
[353599639,1739956265493,-500.0,0.00013863,2]
[353599640,1739956265506,-1963.13,0.00013863,2]
[353599641,1739956265519,-1824.72,0.00013863,2]
[353599642,1739956265531,-500.0,0.00013863,2]
[353599643,1739956265544,-769.56,0.00013863,2]
[353599644,1739956265556,-500.0,0.00013863,2]
[353599645,1739956265569,-2385.16,0.00013863,2]
[353599646,1739956265582,-500.0,0.00013863,2]
[353599647,1739956265597,-500.0,0.00013863,2]
[353599648,1739956265613,-500.0,0.00013863,2]
[353599649,1739956265625,-840.46,0.00013863,2]
[353599650,1739956265638,-500.0,0.00013863,2]
[353599651,1739956265650,-2523.39,0.00013863,2]
[353599652,1739956265662,-1643.54,0.00013863,2]
[353599653,1739956265675,-2175.35,0.00013863,2]
[353599654,1739956265694,-615.78,0.00013863,2]
[353599655,1739956265708,-2986.0,0.00013863,2]
[353599656,1739956265722,-500.0,0.00013863,2]
[353599657,1739956265737,-500.0,0.00013863,2]
[353599658,1739956265752,-1739.78,0.00013863,2]
[353599659,1739956265766,-500.0,0.00013863,2]
[353599660,1739956265779,-971.68,0.00013863,2]
[353599661,1739956265794,-500.0,0.00013863,2]
[353599662,1739956265807,-500.0,0.00013863,2]
[353599663,1739956265822,-2511.52,0.00013863,2]
[353599664,1739956265835,-500.0,0.00013863,2]
[353599665,1739956265850,-500.0,0.00013863,2]
[353599666,1739956265864,-914.34,0.00013863,2]
[353599667,1739956265878,-1390.15,0.00013863,2]
[353599668,1739956265891,-713.77,0.00013863,2]
[353599669,1739956265904,-500.0,0.00013863,2]
[353599670,1739956265916,-500.0,0.00013863,2]
[353599671,1739956265931,-500.0,0.00013863,2]
[353599672,1739956265944,-2655.23,0.00013863,2]
[353599673,1739956265958,-2440.93,0.00013863,2]
[353599674,1739956265971,-1194.06,0.00013863,2]
[353599675,1739956265984,-500.0,0.00013863,2]
[353599676,1739956265997,-500.0,0.00013863,2]